[Event "Titled Tuesday Blitz June 27 Early 2023"]
[White "Howell, David W L"]
[Black "Shubenkova, Veronika"]
[WhiteFideId "410608"]
[BlackFideId "44124040"]
[WhiteElo "3000"]
[BlackElo "2505"]
[Result "1-0"]
[Round "10"]
[TimeControl "180+2"]
[Date "2023.06.27"]
[WhiteClock "0:01:01"]
[BlackClock "0:01:13"]
[Board "67"]

1. e4 {[%clk 0:02:55]}  e6 {[%clk 0:03:00]} 2. d4 {[%clk 0:02:50]}  d5 {[%clk 0:03:00]} 3. Nc3 {[%clk 0:02:50]}  Nf6 {[%clk 0:03:00]} 4. e5 {[%clk 0:02:49]}  Nfd7 {[%clk 0:03:00]} 5. Nce2 {[%clk 0:02:50]}  c5 {[%clk 0:03:00]} 6. c3 {[%clk 0:02:51]}  Nc6 {[%clk 0:03:00]} 7. f4 {[%clk 0:02:50]}  Be7 {[%clk 0:03:01]} 8. Nf3 {[%clk 0:02:50]}  a6 {[%clk 0:03:00]} 9. h4 {[%clk 0:02:50]}  b5 {[%clk 0:03:01]} 10. h5 {[%clk 0:02:51]}  h6 {[%clk 0:03:01]} 11. Be3 {[%clk 0:02:45]}  Qb6 {[%clk 0:02:59]} 12. Qd2 {[%clk 0:02:37]}  Bb7 {[%clk 0:02:59]} 13. Ng3 {[%clk 0:02:13]}  cxd4 {[%clk 0:02:58]} 14. Nxd4 {[%clk 0:02:10]}  Nxd4 {[%clk 0:02:58]} 15. Bxd4 {[%clk 0:01:58]}  Bc5 {[%clk 0:02:53]} 16. Be2 {[%clk 0:01:56]}  Bxd4 {[%clk 0:02:51]} 17. Qxd4 {[%clk 0:01:54]}  Qxd4 {[%clk 0:02:50]} 18. cxd4 {[%clk 0:01:55]}  Nb6 {[%clk 0:02:50]} 19. b3 {[%clk 0:01:38]}  Kd7 {[%clk 0:02:48]} 20. Rh4 {[%clk 0:01:28]}  f5 {[%clk 0:02:37]} 21. Nh1 {[%clk 0:01:25]}  Ke7 {[%clk 0:02:32]} 22. g4 {[%clk 0:01:17]}  Rhf8 {[%clk 0:02:31]} 23. Nf2 {[%clk 0:01:15]}  Rac8 {[%clk 0:02:28]} 24. Kd2 {[%clk 0:01:16]}  Nd7 {[%clk 0:02:26]} 25. Rg1 {[%clk 0:01:15]}  Rc7 {[%clk 0:02:11]} 26. gxf5 {[%clk 0:01:15]}  Rfc8 {[%clk 0:02:10]} 27. Rxg7+ {[%clk 0:01:10]}  Kf8 {[%clk 0:02:10]} 28. f6 {[%clk 0:01:08]}  Rc2+ {[%clk 0:02:05]} 29. Ke3 {[%clk 0:01:07]}  R8c3+ {[%clk 0:01:56]} 30. Nd3 {[%clk 0:01:05]}  Rxa2 {[%clk 0:01:21]} 31. Rhg4 {[%clk 0:01:01]}  Rcc2 {[%clk 0:01:13]} 32. Rg8+ {[%clk 0:01:00]}  Kf7 {[%clk 0:01:13]} 33. R4g7# {[%clk 0:01:01]} 1-0


[Site "https://www.chess.com"]

[Event "Titled Tuesday Blitz June 27 Early 2023"]
[White "Liu, Xiangyi"]
[Black "Shuvalov, Evgenij"]
[WhiteFideId "8605718"]
[BlackFideId "4187237"]
[WhiteElo "2717"]
[BlackElo "2503"]
[Result "1-0"]
[Round "10"]
[TimeControl "180+2"]
[Date "2023.06.27"]
[WhiteClock "0:00:22"]
[BlackClock "0:00:09"]
[Board "68"]

1. b3 {[%clk 0:03:00]}  d5 {[%clk 0:02:59]} 2. Bb2 {[%clk 0:03:01]}  Nf6 {[%clk 0:02:59]} 3. f4 {[%clk 0:03:01]}  Bg4 {[%clk 0:02:58]} 4. h3 {[%clk 0:03:01]}  Bf5 {[%clk 0:02:56]} 5. g4 {[%clk 0:02:58]}  Bc8 {[%clk 0:02:51]} 6. Nf3 {[%clk 0:02:56]}  h5 {[%clk 0:02:40]} 7. g5 {[%clk 0:02:54]}  Ne4 {[%clk 0:02:40]} 8. Rg1 {[%clk 0:02:48]}  h4 {[%clk 0:02:38]} 9. Bg2 {[%clk 0:02:41]}  e6 {[%clk 0:02:23]} 10. e3 {[%clk 0:02:37]}  c5 {[%clk 0:02:20]} 11. d3 {[%clk 0:02:36]}  Ng3 {[%clk 0:02:16]} 12. Nbd2 {[%clk 0:02:35]}  Nc6 {[%clk 0:02:08]} 13. Kf2 {[%clk 0:02:34]}  Nf5 {[%clk 0:01:59]} 14. e4 {[%clk 0:02:32]}  Nfd4 {[%clk 0:01:53]} 15. Nxd4 {[%clk 0:02:30]}  cxd4 {[%clk 0:01:47]} 16. exd5 {[%clk 0:02:28]}  exd5 {[%clk 0:01:47]} 17. Re1+ {[%clk 0:02:26]}  Be7 {[%clk 0:01:47]} 18. Qf3 {[%clk 0:02:21]}  Kf8 {[%clk 0:01:36]} 19. Re2 {[%clk 0:02:09]}  Bf5 {[%clk 0:01:28]} 20. Rae1 {[%clk 0:02:08]}  Bb4 {[%clk 0:01:20]} 21. a3 {[%clk 0:02:06]}  Bc3 {[%clk 0:01:19]} 22. Bxc3 {[%clk 0:01:39]}  dxc3 {[%clk 0:01:19]} 23. Nb1 {[%clk 0:01:40]}  Qb6+ {[%clk 0:00:48]} 24. Qe3 {[%clk 0:01:30]}  Qxe3+ {[%clk 0:00:36]} 25. Rxe3 {[%clk 0:01:30]}  d4 {[%clk 0:00:34]} 26. R3e2 {[%clk 0:01:31]}  g6 {[%clk 0:00:31]} 27. b4 {[%clk 0:01:26]}  a6 {[%clk 0:00:31]} 28. Bxc6 {[%clk 0:01:16]}  bxc6 {[%clk 0:00:32]} 29. Kg2 {[%clk 0:01:16]}  a5 {[%clk 0:00:30]} 30. bxa5 {[%clk 0:01:15]}  Rxa5 {[%clk 0:00:28]} 31. Re5 {[%clk 0:00:58]}  Ra8 {[%clk 0:00:23]} 32. Rc5 {[%clk 0:00:57]}  Rb8 {[%clk 0:00:20]} 33. Nxc3 {[%clk 0:00:32]}  dxc3 {[%clk 0:00:20]} 34. Rxc3 {[%clk 0:00:33]}  Bd7 {[%clk 0:00:19]} 35. a4 {[%clk 0:00:32]}  Kg7 {[%clk 0:00:18]} 36. Re7 {[%clk 0:00:31]}  Be6 {[%clk 0:00:18]} 37. Rc5 {[%clk 0:00:29]}  Bd5+ {[%clk 0:00:18]} 38. Kf2 {[%clk 0:00:29]}  Rb2 {[%clk 0:00:18]} 39. Ke3 {[%clk 0:00:28]}  Ra8 {[%clk 0:00:16]} 40. c4 {[%clk 0:00:28]}  Bg2 {[%clk 0:00:17]} 41. f5 {[%clk 0:00:27]}  gxf5 {[%clk 0:00:16]} 42. Rxf5 {[%clk 0:00:27]}  Rf8 {[%clk 0:00:16]} 43. Rf4 {[%clk 0:00:23]}  Bxh3 {[%clk 0:00:16]} 44. Rxh4 {[%clk 0:00:23]}  Bf5 {[%clk 0:00:16]} 45. Rf4 {[%clk 0:00:23]}  Bg6 {[%clk 0:00:16]} 46. Rf6 {[%clk 0:00:23]}  Ra2 {[%clk 0:00:16]} 47. Rxc6 {[%clk 0:00:21]}  Rxa4 {[%clk 0:00:16]} 48. d4 {[%clk 0:00:21]}  Ra3+ {[%clk 0:00:15]} 49. Kf4 {[%clk 0:00:21]}  Rh8 {[%clk 0:00:14]} 50. Ke5 {[%clk 0:00:19]}  Rh4 {[%clk 0:00:14]} 51. d5 {[%clk 0:00:18]}  Re4+ {[%clk 0:00:13]} 52. Kd6 {[%clk 0:00:18]}  Rxe7 {[%clk 0:00:12]} 53. Kxe7 {[%clk 0:00:19]}  Rg3 {[%clk 0:00:12]} 54. d6 {[%clk 0:00:19]}  Rxg5 {[%clk 0:00:12]} 55. d7 {[%clk 0:00:19]}  Re5+ {[%clk 0:00:13]} 56. Kd8 {[%clk 0:00:19]}  Bf5 {[%clk 0:00:12]} 57. Kc7 {[%clk 0:00:18]}  Re7 {[%clk 0:00:12]} 58. Rd6 {[%clk 0:00:18]}  Be6 {[%clk 0:00:10]} 59. c5 {[%clk 0:00:18]}  f5 {[%clk 0:00:10]} 60. Rxe6 {[%clk 0:00:17]}  Rxe6 {[%clk 0:00:10]} 61. d8=Q {[%clk 0:00:18]}  Rf6 {[%clk 0:00:10]} 62. c6 {[%clk 0:00:18]}  f4 {[%clk 0:00:10]} 63. Qd2 {[%clk 0:00:16]}  f3 {[%clk 0:00:10]} 64. Qf2 {[%clk 0:00:17]}  Kg6 {[%clk 0:00:10]} 65. Kb7 {[%clk 0:00:17]}  Kg5 {[%clk 0:00:10]} 66. c7 {[%clk 0:00:18]}  Rf7 {[%clk 0:00:09]} 67. Kb8 {[%clk 0:00:18]}  Rf8+ {[%clk 0:00:09]} 68. c8=Q {[%clk 0:00:19]}  Rxc8+ {[%clk 0:00:10]} 69. Kxc8 {[%clk 0:00:20]}  Kf4 {[%clk 0:00:11]} 70. Kd7 {[%clk 0:00:21]}  Ke4 {[%clk 0:00:09]} 71. Kd6 {[%clk 0:00:22]} 1-0


[Site "https://www.chess.com"]

[Event "Titled Tuesday Blitz June 27 Early 2023"]
[White "Kovalevsky, Stanislav"]
[Black "Cherniaiev, Tykhon"]
[WhiteFideId "13508598"]
[BlackFideId "14182360"]
[WhiteElo "2485"]
[BlackElo "2688"]
[Result "0-1"]
[Round "10"]
[TimeControl "180+2"]
[Date "2023.06.27"]
[WhiteClock "0:00:01"]
[BlackClock "0:00:10"]
[Board "69"]

1. c4 {[%clk 0:03:00]}  e5 {[%clk 0:02:59]} 2. Nc3 {[%clk 0:02:53]}  Nf6 {[%clk 0:02:59]} 3. g3 {[%clk 0:02:53]}  d5 {[%clk 0:02:59]} 4. cxd5 {[%clk 0:02:54]}  Nxd5 {[%clk 0:03:00]} 5. Bg2 {[%clk 0:02:52]}  Nb6 {[%clk 0:02:56]} 6. e3 {[%clk 0:02:52]}  Nc6 {[%clk 0:02:56]} 7. Nge2 {[%clk 0:02:52]}  Be7 {[%clk 0:02:56]} 8. O-O {[%clk 0:02:52]}  O-O {[%clk 0:02:49]} 9. f4 {[%clk 0:02:53]}  a5 {[%clk 0:02:18]} 10. h3 {[%clk 0:02:33]}  Re8 {[%clk 0:02:11]} 11. fxe5 {[%clk 0:02:27]}  Nxe5 {[%clk 0:02:12]} 12. d4 {[%clk 0:02:27]}  Ng6 {[%clk 0:02:09]} 13. e4 {[%clk 0:02:24]}  c5 {[%clk 0:02:00]} 14. d5 {[%clk 0:01:57]}  Bf6 {[%clk 0:01:56]} 15. Nf4 {[%clk 0:01:46]}  Bd4+ {[%clk 0:01:45]} 16. Kh2 {[%clk 0:01:46]}  Nc4 {[%clk 0:01:41]} 17. Nxg6 {[%clk 0:01:23]}  hxg6 {[%clk 0:01:41]} 18. Nb5 {[%clk 0:01:17]}  Be5 {[%clk 0:01:30]} 19. Qf3 {[%clk 0:00:54]}  Qd7 {[%clk 0:01:02]} 20. a4 {[%clk 0:00:34]}  f6 {[%clk 0:00:57]} 21. Ra2 {[%clk 0:00:29]}  b6 {[%clk 0:00:50]} 22. b3 {[%clk 0:00:27]}  Nd6 {[%clk 0:00:50]} 23. Nxd6 {[%clk 0:00:18]}  Qxd6 {[%clk 0:00:51]} 24. Re1 {[%clk 0:00:17]}  Ba6 {[%clk 0:00:49]} 25. Bf1 {[%clk 0:00:17]}  Bb7 {[%clk 0:00:47]} 26. Bb5 {[%clk 0:00:16]}  Re7 {[%clk 0:00:46]} 27. Rf2 {[%clk 0:00:15]}  Rf8 {[%clk 0:00:40]} 28. Bf4 {[%clk 0:00:15]}  Bxf4 {[%clk 0:00:29]} 29. Qxf4 {[%clk 0:00:15]}  Re5 {[%clk 0:00:28]} 30. Qg4 {[%clk 0:00:13]}  g5 {[%clk 0:00:17]} 31. Rf5 {[%clk 0:00:10]}  Bc8 {[%clk 0:00:17]} 32. Rxe5 {[%clk 0:00:04]}  Bxg4 {[%clk 0:00:16]} 33. Re8 {[%clk 0:00:05]}  Rxe8 {[%clk 0:00:11]} 34. Bxe8 {[%clk 0:00:06]}  Bf3 {[%clk 0:00:10]} 35. Bc6 {[%clk 0:00:05]}  Qe5 {[%clk 0:00:10]} 36. Kg1 {[%clk 0:00:03]}  Qb2 {[%clk 0:00:10]} 37. Rf1 {[%clk 0:00:01]}  Qg2# {[%clk 0:00:10]} 0-1


[Site "https://www.chess.com"]

[Event "Titled Tuesday Blitz June 27 Early 2023"]
[White "Koepke, Christian"]
[Black "robertoalejandro10"]
[WhiteFideId "4655737"]
[WhiteElo "2436"]
[BlackElo "2595"]
[Result "1/2-1/2"]
[Round "10"]
[TimeControl "180+2"]
[Date "2023.06.27"]
[WhiteClock "0:00:08"]
[BlackClock "0:00:07"]
[Board "73"]

1. c4 {[%clk 0:02:59]}  c5 {[%clk 0:02:59]} 2. Nf3 {[%clk 0:02:59]}  Nf6 {[%clk 0:02:59]} 3. d4 {[%clk 0:02:59]}  cxd4 {[%clk 0:02:59]} 4. Nxd4 {[%clk 0:03:00]}  Nc6 {[%clk 0:02:58]} 5. Nc3 {[%clk 0:02:58]}  g6 {[%clk 0:02:56]} 6. g3 {[%clk 0:02:58]}  Bg7 {[%clk 0:02:56]} 7. Bg2 {[%clk 0:02:58]}  O-O {[%clk 0:02:57]} 8. O-O {[%clk 0:02:59]}  d6 {[%clk 0:02:56]} 9. e3 {[%clk 0:02:50]}  Bd7 {[%clk 0:02:51]} 10. b3 {[%clk 0:02:50]}  Nxd4 {[%clk 0:02:50]} 11. exd4 {[%clk 0:02:50]}  Bc6 {[%clk 0:02:51]} 12. d5 {[%clk 0:02:47]}  Bd7 {[%clk 0:02:34]} 13. Bb2 {[%clk 0:02:46]}  a6 {[%clk 0:02:31]} 14. a4 {[%clk 0:02:44]}  b5 {[%clk 0:02:19]} 15. cxb5 {[%clk 0:02:16]}  axb5 {[%clk 0:02:20]} 16. Nxb5 {[%clk 0:02:14]}  Bxb5 {[%clk 0:02:19]} 17. axb5 {[%clk 0:02:14]}  Qb6 {[%clk 0:02:13]} 18. Qd3 {[%clk 0:02:07]}  Rab8 {[%clk 0:02:11]} 19. Rfe1 {[%clk 0:01:54]}  Qxb5 {[%clk 0:01:40]} 20. Qxb5 {[%clk 0:01:53]}  Rxb5 {[%clk 0:01:41]} 21. Rxe7 {[%clk 0:01:08]}  Nxd5 {[%clk 0:01:19]} 22. Bxg7 {[%clk 0:01:06]}  Kxg7 {[%clk 0:01:20]} 23. Rd7 {[%clk 0:00:56]}  Nf6 {[%clk 0:01:19]} 24. Rxd6 {[%clk 0:00:52]}  Rxb3 {[%clk 0:01:18]} 25. h3 {[%clk 0:00:47]}  Re8 {[%clk 0:00:46]} 26. Rad1 {[%clk 0:00:44]}  Rb2 {[%clk 0:00:43]} 27. R6d2 {[%clk 0:00:41]}  Re2 {[%clk 0:00:42]} 28. Rxe2 {[%clk 0:00:40]}  Rxe2 {[%clk 0:00:43]} 29. Bf3 {[%clk 0:00:40]}  Re7 {[%clk 0:00:42]} 30. Kg2 {[%clk 0:00:40]}  Rd7 {[%clk 0:00:43]} 31. Ra1 {[%clk 0:00:39]}  Re7 {[%clk 0:00:40]} 32. h4 {[%clk 0:00:39]}  h5 {[%clk 0:00:40]} 33. Ra6 {[%clk 0:00:39]}  Rc7 {[%clk 0:00:39]} 34. Ra4 {[%clk 0:00:35]}  Nd7 {[%clk 0:00:39]} 35. Bd5 {[%clk 0:00:33]}  Nf6 {[%clk 0:00:37]} 36. Bb3 {[%clk 0:00:31]}  Ng4 {[%clk 0:00:37]} 37. Rf4 {[%clk 0:00:29]}  f5 {[%clk 0:00:33]} 38. Rc4 {[%clk 0:00:22]}  Rxc4 {[%clk 0:00:28]} 39. Bxc4 {[%clk 0:00:23]}  Kf6 {[%clk 0:00:28]} 40. Be2 {[%clk 0:00:19]}  Ne5 {[%clk 0:00:27]} 41. f4 {[%clk 0:00:18]}  Nf7 {[%clk 0:00:24]} 42. Kf2 {[%clk 0:00:18]}  Nd8 {[%clk 0:00:25]} 43. Ke3 {[%clk 0:00:19]}  Nf7 {[%clk 0:00:25]} 44. Bc4 {[%clk 0:00:18]}  Nd6 {[%clk 0:00:25]} 45. Bd5 {[%clk 0:00:17]}  Nb5 {[%clk 0:00:25]} 46. Kd3 {[%clk 0:00:16]}  Nd6 {[%clk 0:00:24]} 47. Bf3 {[%clk 0:00:16]}  Nb5 {[%clk 0:00:24]} 48. Kc4 {[%clk 0:00:15]}  Nd6+ {[%clk 0:00:22]} 49. Kd5 {[%clk 0:00:16]}  Ne8 {[%clk 0:00:20]} 50. Kc6 {[%clk 0:00:14]}  Ng7 {[%clk 0:00:20]} 51. Bd5 {[%clk 0:00:13]}  Ke7 {[%clk 0:00:15]} 52. Bc4 {[%clk 0:00:12]}  Ne8 {[%clk 0:00:15]} 53. Kd5 {[%clk 0:00:11]}  Nf6+ {[%clk 0:00:15]} 54. Kd4 {[%clk 0:00:08]}  Ng4 {[%clk 0:00:13]} 55. Be2 {[%clk 0:00:06]}  Nf6 {[%clk 0:00:11]} 56. Bf3 {[%clk 0:00:07]}  Nd7 {[%clk 0:00:10]} 57. Kd5 {[%clk 0:00:06]}  Kf6 {[%clk 0:00:10]} 58. Kd6 {[%clk 0:00:06]}  Nb6 {[%clk 0:00:10]} 59. Be2 {[%clk 0:00:05]}  Na4 {[%clk 0:00:08]} 60. Bd3 {[%clk 0:00:05]}  Nc3 {[%clk 0:00:07]} 61. Kc5 {[%clk 0:00:05]}  Nd1 {[%clk 0:00:06]} 62. Kd4 {[%clk 0:00:05]}  Nf2 {[%clk 0:00:06]} 63. Ke3 {[%clk 0:00:03]}  Ng4+ {[%clk 0:00:06]} 64. Kf3 {[%clk 0:00:04]}  Nh2+ {[%clk 0:00:06]} 65. Kg2 {[%clk 0:00:04]}  Ng4 {[%clk 0:00:07]} 66. Kf3 {[%clk 0:00:04]}  Nh2+ {[%clk 0:00:07]} 67. Kg2 {[%clk 0:00:05]}  Ng4 {[%clk 0:00:08]} 68. Be2 {[%clk 0:00:05]}  Nh6 {[%clk 0:00:08]} 69. Kf3 {[%clk 0:00:05]}  Nf7 {[%clk 0:00:09]} 70. Ke3 {[%clk 0:00:06]}  Nd6 {[%clk 0:00:09]} 71. Kf3 {[%clk 0:00:07]}  Ne4 {[%clk 0:00:08]} 72. Bd3 {[%clk 0:00:07]}  Nc5 {[%clk 0:00:08]} 73. Bc4 {[%clk 0:00:07]}  Ne4 {[%clk 0:00:08]} 74. Bd3 {[%clk 0:00:07]}  Nc5 {[%clk 0:00:08]} 75. Bc4 {[%clk 0:00:07]}  Ne4 {[%clk 0:00:07]} 76. Bd3 {[%clk 0:00:08]} 1/2-1/2


[Site "https://www.chess.com"]

[Event "Titled Tuesday Blitz June 27 Early 2023"]
[White "Rom, Jasper"]
[Black "Ibadov, Dashgyn"]
[WhiteFideId "2023733"]
[BlackFideId "24107514"]
[WhiteElo "2435"]
[BlackElo "2590"]
[Result "0-1"]
[Round "10"]
[TimeControl "180+2"]
[Date "2023.06.27"]
[WhiteClock "0:00:00"]
[BlackClock "0:00:45"]
[Board "74"]

1. e4 {[%clk 0:03:00]}  e5 {[%clk 0:02:59]} 2. Nf3 {[%clk 0:03:00]}  Nc6 {[%clk 0:02:59]} 3. Bb5 {[%clk 0:03:00]}  a6 {[%clk 0:03:00]} 4. Bxc6 {[%clk 0:03:00]}  dxc6 {[%clk 0:03:00]} 5. O-O {[%clk 0:03:01]}  Bd6 {[%clk 0:03:01]} 6. d4 {[%clk 0:03:00]}  exd4 {[%clk 0:03:02]} 7. Qxd4 {[%clk 0:03:01]}  f6 {[%clk 0:03:02]} 8. Re1 {[%clk 0:03:00]}  Ne7 {[%clk 0:03:02]} 9. Nbd2 {[%clk 0:02:55]}  Be6 {[%clk 0:03:03]} 10. Nc4 {[%clk 0:02:53]}  Bxh2+ {[%clk 0:03:03]} 11. Kxh2 {[%clk 0:02:47]}  Qxd4 {[%clk 0:03:04]} 12. Nxd4 {[%clk 0:02:47]}  Bxc4 {[%clk 0:03:05]} 13. b3 {[%clk 0:02:43]}  O-O-O {[%clk 0:03:05]} 14. Be3 {[%clk 0:02:35]}  Bf7 {[%clk 0:03:04]} 15. Rad1 {[%clk 0:02:33]}  c5 {[%clk 0:03:02]} 16. Ne2 {[%clk 0:02:06]}  b6 {[%clk 0:03:00]} 17. Nc3 {[%clk 0:01:54]}  Rxd1 {[%clk 0:02:57]} 18. Rxd1 {[%clk 0:01:54]}  Rd8 {[%clk 0:02:58]} 19. Re1 {[%clk 0:01:47]}  Nc6 {[%clk 0:02:57]} 20. Ne2 {[%clk 0:01:36]}  Nd4 {[%clk 0:02:55]} 21. Nxd4 {[%clk 0:01:26]}  cxd4 {[%clk 0:02:56]} 22. Bf4 {[%clk 0:01:26]}  c5 {[%clk 0:02:47]} 23. f3 {[%clk 0:01:24]}  Kb7 {[%clk 0:02:46]} 24. e5 {[%clk 0:01:23]}  Re8 {[%clk 0:02:42]} 25. Bg3 {[%clk 0:01:20]}  f5 {[%clk 0:02:40]} 26. f4 {[%clk 0:01:16]}  Kc6 {[%clk 0:02:39]} 27. Kg1 {[%clk 0:01:13]}  Bd5 {[%clk 0:02:39]} 28. Kf2 {[%clk 0:01:13]}  Be4 {[%clk 0:02:40]} 29. Rc1 {[%clk 0:01:13]}  b5 {[%clk 0:02:39]} 30. c3 {[%clk 0:01:07]}  dxc3 {[%clk 0:02:38]} 31. Rxc3 {[%clk 0:01:07]}  Rd8 {[%clk 0:02:39]} 32. Re3 {[%clk 0:01:00]}  c4 {[%clk 0:02:23]} 33. bxc4 {[%clk 0:00:59]}  bxc4 {[%clk 0:02:24]} 34. Bh4 {[%clk 0:00:52]}  Rb8 {[%clk 0:02:17]} 35. g4 {[%clk 0:00:39]}  Rb2+ {[%clk 0:02:14]} 36. Ke1 {[%clk 0:00:38]}  g6 {[%clk 0:02:05]} 37. gxf5 {[%clk 0:00:33]}  gxf5 {[%clk 0:02:06]} 38. e6 {[%clk 0:00:34]}  Rxa2 {[%clk 0:01:37]} 39. e7 {[%clk 0:00:33]}  Kd7 {[%clk 0:01:37]} 40. Rg3 {[%clk 0:00:26]}  Rg2 {[%clk 0:01:38]} 41. Ra3 {[%clk 0:00:23]}  Bb7 {[%clk 0:01:24]} 42. Rc3 {[%clk 0:00:20]}  Rg4 {[%clk 0:01:21]} 43. Bg5 {[%clk 0:00:18]}  h6 {[%clk 0:01:21]} 44. Bxh6 {[%clk 0:00:16]}  Kxe7 {[%clk 0:01:20]} 45. Rxc4 {[%clk 0:00:16]}  Kd6 {[%clk 0:01:17]} 46. Rb4 {[%clk 0:00:11]}  Be4 {[%clk 0:01:14]} 47. Kd2 {[%clk 0:00:11]}  Rg2+ {[%clk 0:01:06]} 48. Kc3 {[%clk 0:00:10]}  Kc6 {[%clk 0:01:03]} 49. Kd4 {[%clk 0:00:10]}  a5 {[%clk 0:01:03]} 50. Rc4+ {[%clk 0:00:09]}  Kb5 {[%clk 0:01:03]} 51. Rc5+ {[%clk 0:00:09]}  Kb4 {[%clk 0:00:50]} 52. Bf8 {[%clk 0:00:10]}  Rd2+ {[%clk 0:00:49]} 53. Ke3 {[%clk 0:00:09]}  Rd3+ {[%clk 0:00:50]} 54. Ke2 {[%clk 0:00:09]}  Ka4 {[%clk 0:00:50]} 55. Re5 {[%clk 0:00:02]}  Rd8 {[%clk 0:00:46]} 56. Be7 {[%clk 0:00:02]}  Rd7 {[%clk 0:00:46]} 57. Ke3 {[%clk 0:00:00]}  Kb3 {[%clk 0:00:45]} 0-1


[Site "https://www.chess.com"]

[Event "Titled Tuesday Blitz June 27 Early 2023"]
[White "Dinu, Dumitru-Daniel"]
[Black "Janaszak, Dawid"]
[WhiteFideId "1208403"]
[BlackFideId "1119206"]
[WhiteElo "2425"]
[BlackElo "2573"]
[Result "0-1"]
[Round "10"]
[TimeControl "180+2"]
[Date "2023.06.27"]
[WhiteClock "0:00:03"]
[BlackClock "0:00:24"]
[Board "77"]

1. e4 {[%clk 0:03:00]}  c5 {[%clk 0:02:59]} 2. Nf3 {[%clk 0:02:59]}  Nc6 {[%clk 0:02:59]} 3. b3 {[%clk 0:02:53]}  e5 {[%clk 0:02:58]} 4. Bb2 {[%clk 0:02:53]}  d6 {[%clk 0:02:58]} 5. Bb5 {[%clk 0:02:53]}  Nf6 {[%clk 0:02:58]} 6. Bxc6+ {[%clk 0:02:44]}  bxc6 {[%clk 0:02:58]} 7. d3 {[%clk 0:02:45]}  Be7 {[%clk 0:02:58]} 8. O-O {[%clk 0:02:44]}  O-O {[%clk 0:02:59]} 9. Nbd2 {[%clk 0:02:45]}  Qc7 {[%clk 0:02:42]} 10. h3 {[%clk 0:02:42]}  Nd7 {[%clk 0:02:36]} 11. Nh2 {[%clk 0:02:40]}  Re8 {[%clk 0:02:35]} 12. f4 {[%clk 0:02:37]}  exf4 {[%clk 0:02:35]} 13. Rxf4 {[%clk 0:02:35]}  Nf8 {[%clk 0:02:35]} 14. Qf3 {[%clk 0:02:29]}  Be6 {[%clk 0:02:32]} 15. Qg3 {[%clk 0:02:13]}  Ng6 {[%clk 0:02:32]} 16. Rff1 {[%clk 0:02:10]}  Bh4 {[%clk 0:02:20]} 17. Qe3 {[%clk 0:02:07]}  h6 {[%clk 0:02:18]} 18. Ndf3 {[%clk 0:02:07]}  Be7 {[%clk 0:02:15]} 19. Rf2 {[%clk 0:02:02]}  Bf8 {[%clk 0:02:06]} 20. Raf1 {[%clk 0:01:57]}  a5 {[%clk 0:02:04]} 21. a4 {[%clk 0:01:54]}  c4 {[%clk 0:02:02]} 22. bxc4 {[%clk 0:01:48]}  d5 {[%clk 0:02:02]} 23. Nd2 {[%clk 0:01:15]}  dxc4 {[%clk 0:01:40]} 24. d4 {[%clk 0:01:13]}  c5 {[%clk 0:01:22]} 25. Nhf3 {[%clk 0:00:57]}  Rad8 {[%clk 0:01:22]} 26. Kh1 {[%clk 0:00:47]}  Qb6 {[%clk 0:01:21]} 27. Bc3 {[%clk 0:00:44]}  Qc6 {[%clk 0:01:10]} 28. Bxa5 {[%clk 0:00:32]}  Ra8 {[%clk 0:01:04]} 29. Bc3 {[%clk 0:00:28]}  Qxa4 {[%clk 0:01:03]} 30. Nb1 {[%clk 0:00:21]}  Bd5 {[%clk 0:00:59]} 31. e5 {[%clk 0:00:20]}  Qc6 {[%clk 0:00:55]} 32. Nbd2 {[%clk 0:00:15]}  Ra2 {[%clk 0:00:55]} 33. Rc1 {[%clk 0:00:13]}  Ra3 {[%clk 0:00:53]} 34. Nb1 {[%clk 0:00:11]}  Ra2 {[%clk 0:00:52]} 35. Nbd2 {[%clk 0:00:12]}  Qa8 {[%clk 0:00:50]} 36. Nf1 {[%clk 0:00:11]}  Qa3 {[%clk 0:00:48]} 37. Re1 {[%clk 0:00:07]}  Qa8 {[%clk 0:00:44]} 38. dxc5 {[%clk 0:00:07]}  Ra3 {[%clk 0:00:44]} 39. Qd2 {[%clk 0:00:05]}  Bxc5 {[%clk 0:00:43]} 40. Bd4 {[%clk 0:00:05]}  c3 {[%clk 0:00:41]} 41. Qd3 {[%clk 0:00:03]}  Bf8 {[%clk 0:00:39]} 42. Be3 {[%clk 0:00:03]}  Be4 {[%clk 0:00:39]} 43. Qd1 {[%clk 0:00:03]}  Rd8 {[%clk 0:00:36]} 44. Qe2 {[%clk 0:00:03]}  Ra2 {[%clk 0:00:36]} 45. Rc1 {[%clk 0:00:02]}  Ba3 {[%clk 0:00:33]} 46. Rb1 {[%clk 0:00:01]}  Rxc2 {[%clk 0:00:33]} 47. Qb5 {[%clk 0:00:01]}  Rxf2 {[%clk 0:00:31]} 48. Bxf2 {[%clk 0:00:02]}  Bxb1 {[%clk 0:00:30]} 49. Qxb1 {[%clk 0:00:01]}  Qc6 {[%clk 0:00:27]} 50. Qc2 {[%clk 0:00:01]}  Nf4 {[%clk 0:00:26]} 51. Kg1 {[%clk 0:00:01]}  Nxh3+ {[%clk 0:00:25]} 52. gxh3 {[%clk 0:00:02]}  Qxf3 {[%clk 0:00:24]} 53. Ne3 {[%clk 0:00:03]}  Rd2 {[%clk 0:00:23]} 54. Qxc3 {[%clk 0:00:02]}  Qxf2+ {[%clk 0:00:23]} 55. Kh1 {[%clk 0:00:03]}  Qh2# {[%clk 0:00:24]} 0-1


[Site "https://www.chess.com"]

[Event "Titled Tuesday Blitz June 27 Early 2023"]
[White "Ambartsumova, Karina"]
[Black "arenal72"]
[WhiteFideId "4166299"]
[WhiteElo "2566"]
[BlackElo "2379"]
[Result "0-1"]
[Round "10"]
[TimeControl "180+2"]
[Date "2023.06.27"]
[WhiteClock "0:00:00"]
[BlackClock "0:00:37"]
[Board "78"]

1. e4 {[%clk 0:02:59]}  c5 {[%clk 0:02:58]} 2. Nf3 {[%clk 0:02:59]}  e6 {[%clk 0:02:58]} 3. d4 {[%clk 0:02:59]}  cxd4 {[%clk 0:02:57]} 4. Nxd4 {[%clk 0:02:59]}  Qb6 {[%clk 0:02:58]} 5. Nc3 {[%clk 0:02:35]}  Bc5 {[%clk 0:02:55]} 6. Be3 {[%clk 0:02:28]}  Nc6 {[%clk 0:02:48]} 7. Na4 {[%clk 0:02:20]}  Qa5+ {[%clk 0:02:46]} 8. c3 {[%clk 0:02:20]}  Bxd4 {[%clk 0:02:41]} 9. Bxd4 {[%clk 0:02:19]}  Nxd4 {[%clk 0:02:38]} 10. b4 {[%clk 0:01:49]}  Nf3+ {[%clk 0:02:33]} 11. gxf3 {[%clk 0:01:49]}  Qe5 {[%clk 0:02:27]} 12. Qd4 {[%clk 0:01:46]}  f6 {[%clk 0:02:21]} 13. Rg1 {[%clk 0:01:38]}  g6 {[%clk 0:02:14]} 14. Rd1 {[%clk 0:01:31]}  Nh6 {[%clk 0:02:08]} 15. Nc5 {[%clk 0:01:23]}  b6 {[%clk 0:02:01]} 16. Nd3 {[%clk 0:01:04]}  Qxh2 {[%clk 0:01:50]} 17. Rg3 {[%clk 0:00:56]}  Nf7 {[%clk 0:01:31]} 18. Qxf6 {[%clk 0:00:52]}  Qh5 {[%clk 0:01:29]} 19. Be2 {[%clk 0:00:33]}  Qh1+ {[%clk 0:01:21]} 20. Kd2 {[%clk 0:00:31]}  Qh6+ {[%clk 0:01:21]} 21. f4 {[%clk 0:00:28]}  O-O {[%clk 0:01:21]} 22. Bf3 {[%clk 0:00:25]}  Qg7 {[%clk 0:01:15]} 23. Qxg7+ {[%clk 0:00:23]}  Kxg7 {[%clk 0:01:16]} 24. e5 {[%clk 0:00:24]}  Rb8 {[%clk 0:01:15]} 25. Rh1 {[%clk 0:00:20]}  d5 {[%clk 0:01:13]} 26. Rgh3 {[%clk 0:00:18]}  Rh8 {[%clk 0:01:05]} 27. Ke3 {[%clk 0:00:18]}  Ba6 {[%clk 0:01:05]} 28. Nb2 {[%clk 0:00:17]}  Rbc8 {[%clk 0:01:05]} 29. Kd4 {[%clk 0:00:16]}  Nd8 {[%clk 0:01:01]} 30. Bd1 {[%clk 0:00:10]}  Nc6+ {[%clk 0:01:00]} 31. Ke3 {[%clk 0:00:11]}  Ne7 {[%clk 0:01:01]} 32. Kd2 {[%clk 0:00:09]}  h5 {[%clk 0:00:59]} 33. Bc2 {[%clk 0:00:09]}  Kf7 {[%clk 0:00:57]} 34. Rg1 {[%clk 0:00:09]}  Nf5 {[%clk 0:00:54]} 35. Nd1 {[%clk 0:00:07]}  Rc4 {[%clk 0:00:49]} 36. Ne3 {[%clk 0:00:05]}  Rxf4 {[%clk 0:00:47]} 37. Bxf5 {[%clk 0:00:05]}  Rxf2+ {[%clk 0:00:40]} 38. Ke1 {[%clk 0:00:04]}  Re2+ {[%clk 0:00:41]} 39. Kd1 {[%clk 0:00:05]}  exf5 {[%clk 0:00:38]} 40. c4 {[%clk 0:00:03]}  Rxa2 {[%clk 0:00:36]} 41. cxd5 {[%clk 0:00:03]}  Ra1+ {[%clk 0:00:37]} 42. Kd2 {[%clk 0:00:02]}  Rxg1 {[%clk 0:00:38]} 43. e6+ {[%clk 0:00:02]}  Kf6 {[%clk 0:00:37]} 44. Kc3 {[%clk 0:00:00]}  Rd8 {[%clk 0:00:37]} 0-1


[Site "https://www.chess.com"]